fUST/lending_fUST_20241115
["ID","MTS","AMOUNT","RATE_DAILY","PERIOD"]
[342258626,1731671143090,-151.0,0.00013972,2]
[342258627,1731671143113,-151.0,0.00013972,2]
[342258628,1731671143134,-500.0,0.00013972,2]
[342258629,1731671143155,-578.0030808,0.00013972,2]
[342258630,1731671143176,-500.0,0.00013972,2]
[342258631,1731671143318,-402.112198,0.00013972,2]
[342258632,1731671143340,-108.95107225,0.00013972,2]
[342258634,1731671228113,-628.95417833,0.00013561,2]
[342258635,1731671228135,-300.0,0.00013697,2]
[342258636,1731671228155,-300.0,0.00013697,2]
[342258637,1731671228188,-500.0,0.00013698,2]
[342258638,1731671228212,-500.0,0.00013698,2]
[342258639,1731671228235,-500.0,0.00013698,2]
[342258640,1731671228257,-7007.0,0.00013698,2]
[342258641,1731671228278,-500.0,0.00013698,2]
[342258642,1731671228300,-500.0,0.00013698,2]
[342258643,1731671228321,-500.0,0.00013698,2]
[342258644,1731671228341,-500.0,0.00013698,2]
[342258645,1731671228362,-515.32,0.00013698,2]
[342258646,1731671228384,-7492.37,0.00013698,2]
[342258647,1731671228405,-500.0,0.00013698,2]
[342258648,1731671228427,-1228.11,0.00013698,2]
[342258649,1731671228455,-500.0,0.00013698,2]
[342258650,1731671228476,-639.01374225,0.00013698,2]
[342258651,1731671228501,-850.01,0.00013698,2]
[342258652,1731671228523,-1166.39545918,0.00013872,2]
[342258653,1731671228552,-191.52811616,0.00013872,2]
[342258654,1731671228574,-150.01,0.00013971,2]
[342258655,1731671228596,-293.16112575,0.00013972,2]
[342258656,1731671228618,-155.91187002,0.00013972,2]
[342258657,1731671238120,-500.0,0.00013698,2]
[342258658,1731671238141,-500.0,0.00013698,2]
[342258659,1731671238162,-246.20032798,0.00013972,2]
[342258660,1731671238184,-402.112198,0.00013972,2]
[342258661,1731671238204,-374.10025995,0.00013972,2]
[342258662,1731671238236,-400.29974005,0.00013972,2]
[342258663,1731671238257,-500.0,0.00013972,2]
[342258664,1731671238277,-151.0,0.00013972,2]
[342258665,1731671238298,-151.0,0.00013972,2]
[342258666,1731671238320,-151.0,0.00013972,2]
[342258667,1731671238343,-151.0,0.00013972,2]
[342258668,1731671238366,-151.0,0.00013972,2]
[342258669,1731671238388,-151.0,0.00013972,2]
[342258670,1731671238411,-151.0,0.00013972,2]
[342258671,1731671238435,-151.0,0.00013972,2]
[342258672,1731671238455,-500.0,0.00013972,2]
[342258673,1731671238478,-500.0,0.00013972,2]
[342258674,1731671238500,-500.0,0.00013972,2]
[342258675,1731671238521,-345.10755466,0.00013972,2]
[342258676,1731671238542,-156.035794,0.00013972,2]
[342258677,1731671238563,-151.0,0.00013972,2]
[342258678,1731671238584,-151.0,0.00013972,2]
[342258679,1731671238605,-219.386193,0.00013972,2]
[342258680,1731671238627,-219.386193,0.00013972,2]
[342258681,1731671238652,-500.0,0.00013972,2]
[342258682,1731671238674,-682.44,0.00013972,2]
[342258683,1731671238696,-168.53604938,0.00013972,2]
[342258684,1731671238719,-251.97667487,0.00013972,2]
[342258685,1731671238740,-157.7433871,0.00013972,2]
[342258686,1731671238762,-219.386193,0.00013972,2]
[342258687,1731671238783,-219.386193,0.00013972,2]
[342258688,1731671238805,-488.115756,0.00013972,2]
[342258689,1731671238827,-488.115756,0.00013972,2]
[342258690,1731671238847,-488.115756,0.00013972,2]
[342258691,1731671238868,-500.0,0.00013972,2]
[342258692,1731671238892,-500.0,0.00013972,2]
[342258693,1731671238914,-500.0,0.00013972,2]
[342258694,1731671238935,-488.115756,0.00013972,2]
[342258695,1731671238959,-500.0,0.00013972,2]
[342258696,1731671238982,-425.31784938,0.00013972,2]
[342258697,1731671239002,-634.92,0.00013972,2]
[342258698,1731671239023,-500.0,0.00013972,2]
[342258699,1731671239045,-500.0,0.00013972,2]
[342258700,1731671239065,-161.52516735,0.00013972,2]
[342258701,1731671239085,-504.0,0.00013972,2]
[342258702,1731671239107,-151.0,0.00013972,2]
[342258703,1731671239127,-500.0,0.00013972,2]
[342258704,1731671239148,-500.0,0.00013972,2]
[342258705,1731671239169,-2336.0,0.00013972,2]
[342258706,1731671239190,-151.0,0.00013972,2]
[342258707,1731671239212,-151.0,0.00013972,2]
[342258708,1731671239392,-500.0,0.00013972,2]
[342258709,1731671239415,-500.0,0.00013972,2]
[342258710,1731671239436,-500.0,0.00013972,2]
[342258711,1731671239457,-289.92701377,0.00013972,2]
[342258712,1731671239479,-500.0,0.00013972,2]
[342258713,1731671239499,-689.22978,0.00013972,2]
[342258714,1731671239521,-689.22978,0.00013972,2]
[342258715,1731671239541,-500.0,0.00013972,2]
[342258716,1731671239562,-689.22978,0.00013972,2]
[342258717,1731671239583,-689.22978,0.00013972,2]
[342258718,1731671239603,-2212.8,0.00013972,2]
[342258719,1731671239627,-500.0,0.00013972,2]
[342258720,1731671239649,-1996.62,0.00013972,2]
[342258721,1731671239671,-500.0,0.00013972,2]
[342258722,1731671239691,-500.0,0.00013972,2]
[342258723,1731671239713,-285.495117,0.00013972,2]
[342258724,1731671239737,-285.495117,0.00013972,2]
[342258725,1731671239758,-500.0,0.00013972,2]
[342258726,1731671239779,-170.272901,0.00013972,2]
[342258727,1731671239800,-170.272901,0.00013972,2]
[342258728,1731671239821,-170.272901,0.00013972,2]
[342258729,1731671239841,-170.272901,0.00013972,2]
[342258730,1731671239863,-285.495117,0.00013972,2]
[342258731,1731671239885,-285.495117,0.00013972,2]
[342258732,1731671239906,-500.0,0.00013972,2]
[342258733,1731671239927,-500.0,0.00013972,2]
[342258734,1731671239949,-856.52,0.00013972,2]
[342258735,1731671239972,-1348.71,0.00013972,2]
[342258736,1731671239993,-500.0,0.00013972,2]
[342258737,1731671240014,-500.0,0.00013972,2]
[342258738,1731671240035,-500.0,0.00013972,2]
[342258739,1731671240059,-1782.67,0.00013972,2]
[342258740,1731671240080,-150.06,0.00013972,2]
[342258741,1731671240101,-150.75722712,0.00013972,2]
[342258742,1731671240121,-150.06,0.00013972,2]
[342258743,1731671240142,-572.52,0.00013972,2]
[342258744,1731671240164,-500.0,0.00013972,2]
[342258745,1731671240187,-16987.63,0.00013972,2]
[342258746,1731671240208,-500.0,0.00013972,2]
[342258747,1731671240231,-500.0,0.00013972,2]
[342258748,1731671240253,-500.0,0.00013972,2]
[342258749,1731671240274,-500.0,0.00013972,2]
[342258750,1731671240295,-7007.0,0.00013972,2]
[342258751,1731671240317,-500.0,0.00013972,2]
[342258752,1731671240339,-500.0,0.00013972,2]
[342258753,1731671240360,-500.0,0.00013972,2]
[342258754,1731671240382,-370.855047,0.00013972,2]
[342258755,1731671240403,-370.855047,0.00013972,2]
[342258756,1731671240423,-515.32,0.00013972,2]
[342258757,1731671240444,-7492.37,0.00013972,2]
[342258758,1731671240465,-500.0,0.00013972,2]
[342258759,1731671240489,-370.855047,0.00013972,2]
[342258760,1731671240509,-370.855047,0.00013972,2]
[342258761,1731671240530,-1228.11,0.00013972,2]
[342258762,1731671240550,-500.0,0.00013972,2]
[342258763,1731671240570,-150.06,0.00013972,2]
[342258764,1731671240591,-151.0,0.00013972,2]
[342258765,1731671240610,-200.43831208,0.00013972,2]
[342258766,1731671240633,-151.0,0.00013972,2]
[342258767,1731671240654,-151.0,0.00013972,2]
[342258768,1731671240676,-186.541348,0.00013972,2]
[342258769,1731671240696,-151.0,0.00013972,2]
[342258770,1731671240718,-151.0,0.00013972,2]
[342258771,1731671240740,-850.01,0.00013972,2]
[342258772,1731671240760,-500.0,0.00013972,2]
[342258773,1731671240780,-500.0,0.00013972,2]
[342258774,1731671240800,-400.0,0.00013973,2]
[342258775,1731671240825,-151.0,0.00013973,2]
[342258776,1731671240845,-151.0,0.00013986,2]
[342258777,1731671240864,-151.0,0.00014026,2]
[342258778,1731671240884,-151.0,0.00014026,2]
[342258779,1731671240904,-153.0000001,0.000141,2]
[342258780,1731671240924,-151.0,0.00014244,2]
[342258781,1731671240944,-153.534023,0.00014244,2]
[342258782,1731671240964,-826.774881,0.00014244,2]
[342258783,1731671240987,-826.774881,0.00014244,2]
[342258784,1731671241011,-151.0,0.00014244,2]
[342258785,1731671241038,-795.69,0.00014244,2]
[342258786,1731671241066,-10225.86566138,0.00014244,2]
[342258787,1731671241092,-151.0,0.00014244,2]
[342258788,1731671241116,-151.0,0.00014245,2]
[342258789,1731671241141,-151.0,0.00014245,2]
[342258790,1731671241165,-151.0,0.00014245,2]
[342258791,1731671241189,-151.0,0.00014245,2]
[342258792,1731671241214,-151.0,0.00014245,2]
[342258793,1731671241240,-151.0,0.00014245,2]
[342258794,1731671241266,-151.0,0.00014245,2]
[342258795,1731671241294,-725.505032,0.00014245,2]
[342258796,1731671241320,-151.0,0.00014245,2]
[342258797,1731671241345,-151.0,0.00014245,2]
[342258798,1731671241369,-252.432022,0.00014245,2]
[342258799,1731671241397,-151.0,0.00014245,2]
[342258800,1731671241422,-159.134533,0.00014245,2]
[342258801,1731671241445,-159.134533,0.00014245,2]
[342258802,1731671241472,-151.0,0.00014245,2]
[342258803,1731671241500,-180.12415,0.00014245,2]
[342258804,1731671241528,-180.12415,0.00014245,2]
[342258805,1731671241555,-151.0,0.00014245,2]
[342258806,1731671241583,-151.0,0.00014245,2]
[342258807,1731671241612,-151.0,0.00014245,2]
[342258808,1731671241649,-151.0,0.00014245,2]
[342258809,1731671241675,-219.386193,0.00014245,2]
[342258810,1731671241698,-219.386193,0.00014245,2]
[342258811,1731671241725,-488.115756,0.00014245,2]
[342258812,1731671241749,-488.115756,0.00014245,2]
[342258813,1731671241774,-479.77728505,0.00014245,2]
[342258814,1731671241797,-151.0,0.00014245,2]
[342258815,1731671241819,-795.69,0.00014245,2]
[342258816,1731671241843,-795.69,0.00014245,2]
[342258817,1731671241867,-795.69,0.00014245,2]
[342258818,1731671241889,-795.69,0.00014245,2]
[342258819,1731671241914,-795.69,0.00014245,2]
[342258820,1731671241936,-795.69,0.00014245,2]
[342258821,1731671241959,-689.22978,0.00014245,2]
[342258822,1731671241985,-689.22978,0.00014245,2]
[342258823,1731671242013,-285.495117,0.00014245,2]
[342258824,1731671242036,-170.272901,0.00014245,2]
[342258825,1731671242060,-170.272901,0.00014245,2]
[342258826,1731671242083,-285.495117,0.00014245,2]
[342258827,1731671242107,-370.855047,0.00014245,2]
[342258828,1731671242130,-370.855047,0.00014245,2]
[342258829,1731671242153,-151.0,0.00014245,2]
[342258830,1731671242176,-500.0,0.00014246,2]
[342258831,1731671242199,-157.84420659,0.00014246,2]
[342258832,1731671242225,-150.06,0.00014246,2]
[342258833,1731671242247,-152.188017,0.00014246,2]
[342258834,1731671242270,-181.226626,0.00014246,2]
[342258835,1731671242293,-151.0,0.00014246,2]
[342258836,1731671242315,-291.4454015,0.00014246,2]
[342258837,1731671242340,-151.0,0.00014246,2]
[342258838,1731671242362,-151.0,0.00014246,2]
[342258839,1731671242387,-151.0,0.00014246,2]
[342258840,1731671242409,-151.0,0.00014246,2]
[342258841,1731671242432,-151.0,0.00014246,2]
[342258842,1731671242456,-212.925336,0.00014246,2]
[342258843,1731671242482,-151.0,0.00014246,2]
[342258844,1731671242504,-151.0,0.00014246,2]
[342258845,1731671242528,-151.0,0.00014246,2]
[342258846,1731671242552,-151.0,0.00014246,2]
[342258847,1731671242574,-151.0,0.00014246,2]
[342258848,1731671242596,-249.730646,0.00014246,2]
[342258849,1731671242619,-151.0,0.00014246,2]
[342258850,1731671242645,-151.0,0.00014246,2]
[342258851,1731671242675,-151.0,0.00014246,2]
[342258852,1731671242698,-151.0,0.00014246,2]
[342258853,1731671242724,-151.0,0.00014246,2]
[342258854,1731671242747,-169.877464,0.00014246,2]
[342258855,1731671242768,-151.0,0.00014246,2]
[342258856,1731671242789,-151.0,0.00014246,2]
[342258857,1731671242810,-151.0,0.00014246,2]
[342258858,1731671242830,-159.134533,0.00014246,2]
[342258859,1731671242851,-159.134533,0.00014246,2]
[342258860,1731671243070,-159.134533,0.00014246,2]
[342258861,1731671243093,-159.134533,0.00014246,2]
[342258862,1731671243113,-159.134533,0.00014246,2]
[342258863,1731671243133,-159.134525,0.00014246,2]
[342258864,1731671243153,-210.814262,0.00014246,2]
[342258865,1731671243173,-500.0,0.00014246,2]
[342258866,1731671243193,-180.12415,0.00014246,2]
[342258867,1731671243213,-180.12415,0.00014246,2]
[342258868,1731671243237,-180.12415,0.00014246,2]
[342258869,1731671243256,-180.12415,0.00014246,2]
[342258870,1731671243276,-180.12415,0.00014246,2]
[342258871,1731671243296,-180.124142,0.00014246,2]
[342258872,1731671243316,-151.0,0.00014246,2]
[342258873,1731671243336,-151.0,0.00014246,2]
[342258874,1731671243357,-826.774881,0.00014246,2]
[342258875,1731671243377,-826.774881,0.00014246,2]
[342258876,1731671243398,-826.774881,0.00014246,2]
[342258877,1731671243419,-826.774881,0.00014246,2]
[342258878,1731671243438,-826.774881,0.00014246,2]
[342258879,1731671243458,-826.774881,0.00014246,2]
[342258880,1731671243480,-493.54840754,0.00014246,2]
[342258881,1731671249087,-709.87,0.00013698,2]
[342258882,1731671249107,-709.87,0.00013972,2]
[342258883,1731671249127,-79.83159246,0.00014246,2]
[342258884,1731671249150,-283.265904,0.00014246,2]
[342258885,1731671249170,-283.265904,0.00014246,2]
[342258886,1731671249190,-283.265904,0.00014246,2]
[342258887,1731671249210,-283.265904,0.00014246,2]
[342258888,1731671249233,-283.265904,0.00014246,2]
[342258889,1731671249253,-283.265904,0.00014246,2]
[342258890,1731671249272,-500.0,0.00014246,2]
[342258891,1731671249293,-151.0,0.00014246,2]
[342258892,1731671249312,-151.0,0.00014246,2]
[342258893,1731671249333,-151.0,0.00014246,2]
[342258894,1731671249353,-151.0,0.00014246,2]
[342258895,1731671249374,-262.000601,0.00014246,2]
[342258896,1731671249394,-402.112198,0.00014246,2]
[342258897,1731671249414,-402.112198,0.00014246,2]
[342258898,1731671249433,-402.112198,0.00014246,2]
[342258899,1731671249453,-402.112198,0.00014246,2]
[342258900,1731671249472,-402.112198,0.00014246,2]
[342258901,1731671249494,-402.112198,0.00014246,2]
[342258902,1731671249513,-500.0,0.00014246,2]
[342258903,1731671249533,-151.0,0.00014246,2]
[342258904,1731671249552,-151.0,0.00014246,2]
[342258905,1731671249572,-151.0,0.00014246,2]
[342258906,1731671249591,-151.0,0.00014246,2]
[342258907,1731671249611,-151.0,0.00014246,2]
[342258908,1731671249630,-151.0,0.00014246,2]
[342258909,1731671249652,-151.0,0.00014246,2]
[342258910,1731671249672,-151.0,0.00014246,2]
[342258911,1731671249692,-151.0,0.00014246,2]
[342258912,1731671249713,-151.0,0.00014246,2]
[342258913,1731671249737,-151.0,0.00014246,2]
[342258914,1731671249757,-241.661478,0.00014246,2]
[342258915,1731671249776,-500.0,0.00014246,2]
[342258916,1731671249795,-500.0,0.00014246,2]
[342258917,1731671249815,-500.0,0.00014246,2]
[342258918,1731671249835,-151.0,0.00014246,2]
[342258919,1731671249855,-219.386193,0.00014246,2]
[342258920,1731671249876,-219.386193,0.00014246,2]
[342258921,1731671249896,-219.386193,0.00014246,2]
[342258922,1731671249917,-500.0,0.00014246,2]
[342258923,1731671249937,-682.44,0.00014246,2]
[342258924,1731671249958,-219.386193,0.00014246,2]
[342258925,1731671249982,-219.386193,0.00014246,2]
[342258926,1731671250002,-488.115756,0.00014246,2]
[342258927,1731671250022,-219.386193,0.00014246,2]
[342258928,1731671250042,-488.115756,0.00014246,2]
[342258929,1731671250062,-500.0,0.00014246,2]
[342258930,1731671250082,-500.0,0.00014246,2]
[342258931,1731671250101,-500.0,0.00014246,2]
[342258932,1731671250123,-488.115756,0.00014246,2]
[342258933,1731671250142,-174.87600872,0.00014246,2]
[342258934,1731671250162,-488.115756,0.00014246,2]
[342258935,1731671250181,-634.92,0.00014246,2]
[342258936,1731671250201,-500.0,0.00014246,2]
[342258937,1731671250221,-270.56,0.00014246,2]
[342258938,1731671250246,-504.0,0.00014246,2]
[342258939,1731671250269,-500.0,0.00014246,2]
[342258940,1731671250288,-2336.0,0.00014246,2]
[342258941,1731671250308,-151.0,0.00014246,2]
[342258942,1731671250329,-151.0,0.00014246,2]
[342258943,1731671250350,-500.0,0.00014246,2]
[342258944,1731671250371,-500.0,0.00014246,2]
[342258945,1731671250390,-500.0,0.00014246,2]
[342258946,1731671250411,-456.35850439,0.00014246,2]
[342258947,1731671250432,-689.22978,0.00014246,2]
[342258948,1731671250454,-689.22978,0.00014246,2]
[342258949,1731671250476,-179.00531586,0.00014246,2]
[342258950,1731671250496,-689.22978,0.00014246,2]
[342258951,1731671250516,-689.22978,0.00014246,2]
[342258952,1731671250537,-2212.8,0.00014246,2]
[342258953,1731671250558,-500.0,0.00014246,2]
[342258954,1731671250579,-1996.62,0.00014246,2]
[342258955,1731671250600,-500.0,0.00014246,2]
[342258956,1731671250620,-500.0,0.00014246,2]
[342258957,1731671250644,-285.495117,0.00014246,2]
[342258958,1731671250665,-285.495117,0.00014246,2]
[342258959,1731671250686,-500.0,0.00014246,2]
[342258960,1731671250708,-170.272901,0.00014246,2]
[342258961,1731671250730,-170.272901,0.00014246,2]
[342258962,1731671250751,-170.272901,0.00014246,2]
[342258963,1731671250773,-170.272901,0.00014246,2]
[342258964,1731671250795,-285.495117,0.00014246,2]
[342258965,1731671250816,-285.495117,0.00014246,2]
[342258966,1731671250837,-419.68329667,0.00014246,2]
[342258967,1731671250857,-292.98843295,0.00014246,2]
[342258968,1731671250878,-856.52,0.00014246,2]
[342258969,1731671250898,-1348.71,0.00014246,2]
[342258970,1731671250919,-500.0,0.00014246,2]
[342258971,1731671250940,-500.0,0.00014246,2]
[342258972,1731671250961,-572.52,0.00014246,2]
[342258973,1731671250983,-1782.67,0.00014246,2]
[342258974,1731671251003,-500.0,0.00014246,2]
[342258975,1731671251022,-500.0,0.00014246,2]
[342258976,1731671251042,-500.0,0.00014246,2]
[342258977,1731671251063,-500.0,0.00014246,2]
[342258978,1731671251083,-16987.63,0.00014246,2]
[342258979,1731671251103,-500.0,0.00014246,2]
[342258980,1731671251123,-7007.0,0.00014246,2]
[342258981,1731671251145,-500.0,0.00014246,2]
[342258982,1731671251285,-500.0,0.00014246,2]
[342258983,1731671251307,-500.0,0.00014246,2]
[342258984,1731671251331,-515.32,0.00014246,2]
[342258985,1731671251351,-370.855047,0.00014246,2]
[342258986,1731671251371,-370.855047,0.00014246,2]
[342258987,1731671251392,-4841.87776095,0.00014246,2]
[342259061,1731671433606,-1020.5960268,0.00013598,2]
[342259062,1731671433619,-300.0,0.00013697,2]
[342259063,1731671433630,-300.0,0.00013697,2]
[342259064,1731671433640,-320.47262159,0.00013698,2]
[342259065,1731671433650,-298.54904684,0.00013698,2]
[342259066,1731671433659,-1936.2,0.00013698,2]
[342259067,1731671433670,-500.0,0.00013698,2]
[342259068,1731671433680,-500.0,0.00013698,2]
[342259069,1731671433691,-1747.04,0.00013698,2]
[342259070,1731671433704,-362.71507227,0.00013698,2]
[342259071,1731671433714,-749.46,0.00013698,2]
[342259072,1731671433724,-353.4653515,0.00013698,2]
[342259085,1731671440699,-146.5346485,0.00013698,2]
[342259086,1731671440715,-517.0623145,0.00013698,2]
[342259087,1731671440724,-500.0,0.00013698,2]
[342259088,1731671440734,-14864.17,0.00013698,2]
[342259089,1731671440743,-500.0,0.00013698,2]
[342259090,1731671440753,-1180.12,0.00013698,2]
[342259091,1731671440763,-500.0,0.00013698,2]
[342259092,1731671440772,-500.0,0.00013698,2]
[342259093,1731671440782,-2228.2895235,0.00013698,2]
[342259094,1731671441134,-2824.19827685,0.00013698,2]
[342259095,1731671441147,-944.39389295,0.00013698,2]
[342259113,1731671443577,-669.3783067,0.00013698,2]
[342259114,1731671443586,-500.69,0.00013698,2]
[342259115,1731671443596,-500.95,0.00013698,2]
[342259116,1731671443606,-571.39294388,0.00013698,2]
[342259131,1731671446621,-988.43705612,0.00013698,2]
[342259132,1731671446638,-501.71,0.00013698,2]
[342259133,1731671446647,-500.0,0.00013698,2]
[342259134,1731671446656,-500.0,0.00013698,2]
[342259135,1731671446665,-500.0,0.00013698,2]
[342259136,1731671446674,-597.14,0.00013698,2]
[342259137,1731671446683,-500.0,0.00013698,2]
[342259138,1731671446692,-500.0,0.00013698,2]
[342259139,1731671446701,-500.0,0.00013698,2]
[342259140,1731671446715,-500.0,0.00013698,2]
[342259142,1731671446724,-342.48161795,0.00013698,2]
[342259144,1731671446733,-500.0,0.00013698,2]
[342259146,1731671446743,-2525.23112593,0.00013698,2]
[342259156,1731672232401,797.65,0.00010959,2]
[342259157,1731672427163,-203.8440039,0.00012092,2]
[342259158,1731672427184,-166.71132,0.00012481,2]
[342259159,1731672427205,-2505.5925635,0.00012507,2]
[342259160,1731672427225,-166.71132,0.00012607,2]
[342259161,1731672427248,-300.0,0.00012734,2]
[342259162,1731672427269,-300.0,0.00012734,2]
[342259163,1731672427290,-24900.0,0.00012735,2]
[342259164,1731672427311,-1210.26741973,0.000134,2]
[342259165,1731672427333,-12939.11433184,0.000135,2]
[342259166,1731672427355,-671.93961364,0.000135,2]
[342259167,1731672538211,6755.0,0.0001107,2]
[342259185,1731672631859,-221.86783312,0.00012718,2]
[342259186,1731672631869,-2475.49216688,0.00012735,2]
[342259253,1731672637943,-1260.05487072,0.00012735,2]
[342259254,1731672637953,-250.0,0.00012847,2]
[342259255,1731672637963,-1524.03334021,0.00013598,2]
[342259256,1731672637973,-1058.98399229,0.00013598,2]
[342259257,1731672637982,-300.0,0.00013697,2]
[342259258,1731672637991,-599.73997954,0.00013698,2]
[342259259,1731672638001,-600.0,0.00013698,2]
[342259260,1731672638011,-267.02873111,0.00013698,2]
[342259261,1731672638020,-500.0,0.00013698,2]
[342259262,1731672638030,-500.0,0.00013698,2]
[342259263,1731672638042,-506.73445455,0.00013698,2]
[342259264,1731672638051,-300.0,0.00013698,2]
[342259265,1731672638060,-500.0,0.00013698,2]
[342259266,1731672638072,-513.20144115,0.00013698,2]
[342259267,1731672638088,-500.0,0.00013698,2]
[342259268,1731672638097,-500.0,0.00013698,2]
[342259269,1731672638112,-500.0,0.00013698,2]
[342259270,1731672638125,-403.40109068,0.00013698,2]
[342259271,1731672638137,-500.0,0.00013698,2]
[342259272,1731672638150,-500.0,0.00013698,2]
[342259273,1731672638162,-500.0,0.00013698,2]
[342259274,1731672638174,-500.0,0.00013698,2]
[342259275,1731672638186,-500.0,0.00013698,2]
[342259276,1731672638196,-500.0,0.00013698,2]
[342259277,1731672638207,-500.0,0.00013698,2]
[342259278,1731672638216,-500.0,0.00013698,2]
[342259279,1731672638228,-2336.0,0.00013698,2]
[342259280,1731672638240,-500.0,0.00013698,2]
[342259281,1731672638251,-500.0,0.00013698,2]
[342259282,1731672638264,-500.0,0.00013698,2]
[342259283,1731672638275,-500.0,0.00013698,2]
[342259284,1731672638286,-500.0,0.00013698,2]
[342259285,1731672638305,-500.0,0.00013698,2]
[342259286,1731672638317,-500.0,0.00013698,2]
[342259287,1731672638331,-250.25419035,0.00013698,2]
[342259288,1731672638343,-500.0,0.00013698,2]
[342259289,1731672638354,-500.0,0.00013698,2]
[342259290,1731672638365,-500.0,0.00013698,2]
[342259291,1731672638376,-500.0,0.00013698,2]
[342259292,1731672638388,-500.0,0.00013698,2]
[342259293,1731672638399,-500.0,0.00013698,2]
[342259294,1731672638412,-500.0,0.00013698,2]
[342259295,1731672638423,-500.0,0.00013698,2]
[342259296,1731672638435,-500.0,0.00013698,2]
[342259297,1731672638447,-500.0,0.00013698,2]
[342259298,1731672638460,-500.0,0.00013698,2]
[342259299,1731672638471,-500.0,0.00013698,2]
[342259300,1731672638483,-508.48,0.00013698,2]
[342259301,1731672638494,-500.0,0.00013698,2]
[342259302,1731672638506,-500.0,0.00013698,2]
[342259303,1731672638518,-500.0,0.00013698,2]
[342259304,1731672638530,-500.0,0.00013698,2]
[342259305,1731672638542,-500.0,0.00013698,2]
[342259306,1731672638553,-500.0,0.00013698,2]
[342259307,1731672638564,-500.0,0.00013698,2]
[342259308,1731672638574,-500.0,0.00013698,2]
[342259309,1731672638583,-500.0,0.00013698,2]
[342259310,1731672638592,-500.0,0.00013698,2]
[342259311,1731672638602,-500.0,0.00013698,2]
[342259312,1731672638613,-500.0,0.00013698,2]
[342259313,1731672638623,-500.0,0.00013698,2]
[342259314,1731672638634,-173.10881106,0.00013698,2]
[342259315,1731672638648,-326.89118894,0.00013698,2]
[342259316,1731672638658,-500.0,0.00013698,2]
[342259317,1731672638669,-500.0,0.00013698,2]
[342259318,1731672638681,-500.0,0.00013698,2]
[342259319,1731672638692,-500.0,0.00013698,2]
[342259320,1731672638704,-500.0,0.00013698,2]
[342259321,1731672638714,-335.45560969,0.00013698,2]
[342259322,1731672638725,-500.0,0.00013698,2]
[342259323,1731672638736,-192.25908844,0.00013698,2]
[342259324,1731672638747,-500.0,0.00013698,2]
[342259325,1731672638758,-500.0,0.00013698,2]
[342259326,1731672638769,-500.0,0.00013698,2]
[342259327,1731672638780,-500.0,0.00013698,2]
[342259328,1731672638792,-554.40644821,0.00013698,2]
[342259329,1731672638804,-531.92040292,0.00013698,2]
[342259330,1731672638815,-500.0,0.00013698,2]
[342259331,1731672638825,-500.0,0.00013698,2]
[342259332,1731672638835,-500.0,0.00013698,2]
[342259333,1731672638844,-44.20494322,0.00013698,2]
[342259334,1731672638865,-455.79505678,0.00013698,2]
[342259335,1731672638875,-500.0,0.00013698,2]
[342259336,1731672638885,-81.71784138,0.00013698,2]
[342259351,1731672639829,-418.28215862,0.00013698,2]